Cogmind - Beta 16 @@@ ROGUE MODE // 2025.11.28 @ 15:33:21 Player: BlobtheGreat Result: Destroyed by H-66 Slayer with Heavy Assault Rifle Performance ------------- Evolutions (4) 2000 Regions Visited (6) 1200 Robots Destroyed (68) 340 Value Destroyed (1936) 1936 Prototype IDs (27) 540 Alien Tech Used (0) 0 Bonus (3350) 3350 TOTAL SCORE: 9366 Bonus ------- Follower Combat Kills 550 Delivered SUBCON Basin 2000 Registered with UFD 300 Met Optimus in HQ 500 Cogmind --------- Core Integrity 0/850 Matter 181/300 Energy 18/100 System Corruption 21% Temperature Cool (2) Movement Hovering (80) Location -6/Factory Parts ------- > --- POWER (2) -------- (None) > --- PROPULSION (4) --- Combat Airjet > --- UTILITY (6) ------ Improved Signal Interpreter Transmission Jammer Tech Extrapolator > --- WEAPON (3) ------- Companion Sword > --- INVENTORY (5) ---- Matter Compressor (250) Experimental Sensor Array Plasma Cannon Multitool DRS Beacon (Ready) Peak State ------------ > --- POWER ------------ Improved Deuterium Engine Fission Core > --- PROPULSION ------- Carbon-fiber Leg Improved Carbon-fiber Leg Cargo Legs > --- UTILITY ---------- High-capacity Storage Unit Experimental Sensor Array Improved Signal Interpreter Advanced Melee Analysis Suite Advanced Melee Analysis Suite Force Booster Improved Shield Generator Tech Extrapolator > --- WEAPON ----------- Companion Sword Vampiric Broadsword > --- INVENTORY -------- Flexi-carbon Leg Combat Airjet Matter Compressor Improved Target Analyzer Transmission Jammer Gun Armor Authchip [Propulsion] Authchip [Processor] Authchip [Weapon] Plasma Cannon Heavy Ion Cannon Improved Remote Datajack CPS Tube CPS Tube Multitool DRS Beacon [Rating: 96] Favorites ----------- Power Subdweller Power Source Engine Subdweller Power Source Power Core Fission Core Propulsion Improved Aluminum Leg Leg Improved Aluminum Leg Hover Unit Combat Airjet Utility Huge Storage Unit Device V3-11A's Pendant Storage Huge Storage Unit Processor Tech Extrapolator Hackware Authchip [Weapon] Protection Improved Medium Armor Plating Weapon Subdweller Laser Energy Gun Subdweller Laser Energy Cannon Heavy Ion Cannon Ballistic Gun Assault Rifle Ballistic Cannon Battle Cannon Launcher Grenade Launcher Special Weapon Mining Laser Impact Weapon Flail Slashing Weapon Companion Sword Build | -11 -10 -10 -10 -9 -9 -6 ------- Run | Yrd Mat Min Sub Rec Scr Fac Slots Evolved 8 | . . . . . . 8 Power 1 | . . . . . . 1 Propulsion 2 | . . . . . . 2 Utility 4 | . . . . . . 4 Weapon 1 | . . . . . . 1 Parts Attached 59 | 8 2 5 9 2 6 27 Power 9 | 1 . 1 3 . 1 3 Engine 8 | 1 . 1 3 . 1 2 Core 1 | . . . . . . 1 Reactor . | . . . . . . . Propulsion 13 | 2 . 1 2 1 2 5 Treads . | . . . . . . . Leg 12 | 2 . 1 2 1 2 4 Wheel . | . . . . . . . Hover 1 | . . . . . . 1 Flight . | . . . . . . . Utility 21 | 2 . 1 2 . 2 14 Device 9 | 1 . . 1 . . 7 Storage 4 | 1 . 1 1 . 1 . Processor 4 | . . . . . 1 3 Hackware 1 | . . . . . . 1 Protection 3 | . . . . . . 3 Artifact . | . . . . . . . Weapon 16 | 3 2 2 2 1 1 5 Energy Gun 4 | 3 . . 1 . . . Energy Cannon 1 | . . . . . . 1 Ballistic Gun 2 | . 2 . . . . . Ballistic Cannon 1 | . . . 1 . . . Launcher 2 | . . 1 . . . 1 Special Weapon 2 | . . 1 . . . 1 Impact Weapon 1 | . . . . 1 . . Slashing Weapon 3 | . . . . . 1 2 Piercing Weapon . | . . . . . . . Special Melee Weapon . | . . . . . . . Unidentified Prototypes 2 | . . . 1 . 1 . Corrupted Parts 1 | . . . . . . 1 System Corruption 4 | . . . . . . 4 Parts Lost 20 | . . 2 1 . . 17 Power 5 | . . 1 . . . 4 Propulsion 6 | . . 1 . . . 5 Utility 7 | . . . . . . 7 Weapon 2 | . . . 1 . . 1 Highest Loss Streak 8 | . . 1 1 . . 8 To Critical Strikes . | . . . . . . . Average Backups 11 | 3 6 7 8 10 14 15 Power 1 | . 1 . 1 1 1 1 Propulsion 1 | 1 2 3 1 1 1 1 Utility 6 | . 1 2 3 6 9 7 Weapon 1 | . . 1 1 1 2 2 Tool/Special . | . . . . . . . Unused Backups 19 | . 2 1 1 . 3 12 Power 1 | . . . . . . 1 Propulsion 4 | . 2 1 1 . . . Utility 10 | . . . . . 3 7 Weapon 1 | . . . . . . 1 Tool/Special 3 | . . . . . . 3 Average Slot Usage (%) 94 | . 99 99 99 100 92 77 Engine 13 | . 14 13 14 14 13 8 Leg 26 | . 28 27 27 28 28 16 Device 8 | . 14 14 14 14 . 11 Storage 13 | . 14 14 14 14 14 4 Processor 5 | . . . . . 9 14 Energy Gun 10 | . 14 . 13 14 11 . Ballistic Gun 1 | . 13 27 1 . . . Ballistic Cannon 5 | . . . 12 4 . . Impact Weapon 5 | . . . . 9 11 . Slashing Weapon 2 | . . . . . 2 10 Peak Build Rating 96 | 7 8 9 35 35 27 96 Average Rating 31 | 5 7 8 32 28 21 77 On Entrance 15 | . 7 8 9 35 20 27 Avg Prop Armor Cover (%) 15 | . . . . . . 15 Naked Turns . | . . . . . . . Heaviest Build 93 | 12 13 20 93 93 93 85 Greatest Support 88 | 20 20 23 26 26 26 88 Greatest Overweight (x) 7 | . . . 7 3 3 3 Average Overweight (x) 1 | . . . 2 3 2 . Largest Inventory Capacity 25 | 8 8 10 25 25 25 20 Average Capacity 22 | 7 8 9 24 25 22 19 Most Carried 25 | 5 8 8 25 25 21 20 Average Carried 19 | 3 6 7 24 20 17 17 Final Capacity 25 | 8 8 10 25 25 20 5 Final Carried 25 | 5 8 8 25 17 20 5 Class Distribution -------------------- 45% | Mutant 44% | Commander-Mutant 5% | Derelict-Gladiator 3% | Gladiator Dominant Class ---------------- Mutant | -10/Materials Mutant | -10/Mines Mutant | -10/Subcaves Commander-Mutant | -9/Recycling Commander-Mutant | -9/Scraptown Derelict-Gladiator | -6/Factory Resources | -11 -10 -10 -10 -9 -9 -6 ----------- Run | Yrd Mat Min Sub Rec Scr Fac Matter Collected 2184 | 280 . 465 435 235 50 719 Remotely . | . . . . . . . Salvage Created 2041 | 264 . 179 313 454 . 831 Parts 125 | 18 . 18 31 7 . 51 Haulers Intercepted . | . . . . . . . Recyclers Shooed . | . . . . . . . Parts Field Recycled . | . . . . . . . Retrieved Matter . | . . . . . . . Parts Self-Destructed 23 | . . . 23 . . . Prevented . | . . . . . . . Parts Restored . | . . . . . . . Kills | -11 -10 -10 -10 -9 -9 -6 ------- Run | Yrd Mat Min Sub Rec Scr Fac Combat Hostiles Destroyed 51 | . . 14 12 1 . 24 Melee 15 | . . . . . . 15 Guns 10 | . . 6 4 . . . Cannons 3 | . . . 2 1 . . AOE 23 | . . 8 6 . . 9 Classes Destroyed 13 | 3 . 2 3 1 . 4 Worker 2 | 2 . . . . . . Tunneler 7 | 6 . . . . . 1 Recycler 6 | 1 . . . 5 . . Watcher 2 | . . . . . . 2 Swarmer 27 | . . 12 3 . . 12 Grunt 3 | . . 2 . . . 1 Duelist 1 | . . . . 1 . . Sentry 2 | . . . 1 . . 1 Specialist 1 | . . . . . . 1 Hunter 1 | . . . . . . 1 Programmer 8 | . . . . . . 8 Artisan 2 | . . . 2 . . . Subdweller 8 | . . . 8 . . . Best Kill Streak 6 | 2 . 3 4 3 . 6 Combat Bots Only 6 | . . 3 4 1 . 6 Max Kills in Single Turn 5 | 1 . 3 2 1 . 5 Gunslinging . | . . . . . . . Exploded 5 | . . 3 2 . . 5 Melee 1 | . . . . . . 1 Uniques/NPCs Destroyed . | . . . . . . . Combat | -11 -10 -10 -10 -9 -9 -6 -------- Run | Yrd Mat Min Sub Rec Scr Fac Hostile Shots Fired 447 | . 4 41 31 . . 371 Missed 150 | . 1 11 15 . . 123 Hits 297 | . 3 30 16 . . 248 Projectile 297 | . 3 30 16 . . 248 Critical Strikes 5 | . . . . . . 5 Part Disruptions 1 | . . . . . . 1 Damage Taken 4359 | . 75 405 365 . . 3514 Core 803 | . . 67 75 . . 661 Absorbed by Shields 196 | . . . . . . 196 Core Remaining (%) 71 | 100 . . . . 43 . Volleys Fired 135 | 28 11 29 49 3 . 15 Largest 2 | 2 2 2 2 1 . 1 Hottest 100 | 90 40 100 93 33 . 65 Shots Fired 196 | 47 18 51 62 3 . 15 Gun 126 | 47 18 44 17 . . . Cannon 46 | . . . 35 3 . 8 Launcher 22 | . . 5 10 . . 7 Special 2 | . . 2 . . . . Kinetic 101 | . 14 44 40 3 . . Thermal 73 | 47 4 2 12 . . 8 Explosive 22 | . . 5 10 . . 7 Electromagnetic . | . . . . . . . Robot Hit Streak 17 | 6 2 5 17 1 . . Robot Miss Streak 5 | 4 4 5 1 2 . . Penetration Max . | . . . . . . . Secondary Targets 2 | . . 2 . . . . Max Gunslinging Chain 1 | . . 1 . . . . Shots Hit Robots 159 | 30 7 23 26 6 . 67 Core Hits 84 | 10 3 17 20 3 . 31 Critical Kills 1 | . . . . 1 . . Critical Parts Destroyed . | . . . . . . . Critical Strikes 5 | 4 . . . 1 . . Burn 4 | 4 . . . . . . Smash 1 | . . . . 1 . . Melee Attacks 129 | . . . . 5 . 124 Impact 5 | . . . . 5 . . Slashing 124 | . . . . . . 124 Piercing . | . . . . . . . Sneak Attacks 7 | . . . . 5 . 2 Combat Hostiles . | . . . . . . . Follow-up Attacks 10 | . . . . . . 10 Damage Inflicted 7305 | 371 86 689 1245 390 . 4524 Guns 1001 | 371 80 308 242 . . . Cannons 269 | . . . 245 24 . . Explosions 2358 | . . 381 758 . . 1219 Melee 3659 | . . . . 354 . 3305 Ramming 18 | . 6 . . 12 . . Kinetic 709 | . 69 308 308 24 . . Thermal 1470 | 371 11 41 179 . . 868 Explosive 1449 | . . 340 758 . . 351 Electromagnetic . | . . . . . . . Impact 354 | . . . . 354 . . Slashing 3305 | . . . . . . 3305 Piercing . | . . . . . . . Highest Corruption 21 | . . . . . . 21 Average Corruption 9 | . . . . . . 9 Corruption Purged . | . . . . . . . Corruption Blocked . | . . . . . . . Effects 67 | . . . . . . 67 Message Errors 14 | . . . . . . 14 Matter Fused 12 | . . . . . . 12 Heat Flow Errors 12 | . . . . . . 12 Energy Discharges 9 | . . . . . . 9 Parts Fused 1 | . . . . . . 1 Data Loss (minor) 14 | . . . . . . 14 Alerts 3 | . . . . . . 3 Misdirections 2 | . . . . . . 2 Overload Shots . | . . . . . . . Overflow Damage 590 | . . 1 . 174 . 415 Projectiles . | . . . . . . . Explosions 68 | . . 1 . . . 67 Melee 522 | . . . . 174 . 348 Knockbacks 4 | . . . 2 2 . . Impact 1 | . . . . 1 . . Kinetic 2 | . . . 2 . . . Secondary 1 | . . . . 1 . . Self-Inflicted Damage 488 | . . 107 46 . . 335 Shots 11 | . . 3 2 . . 6 Rammed . | . . . . . . . Targets Rammed 3 | . 2 . . 1 . . Kicked 3 | . 2 . . 1 . . Crushed . | . . . . . . . Highest Temperature 273 | 160 . 40 . . . 273 Average Temperature 84 | 67 . 12 . . . 102 Received Heat Transfer 438 | . 18 87 36 . . 297 Siege Activations . | . . . . . . . Martial Activations . | . . . . . . . Shielding Activations . | . . . . . . . Robots Disrupted 1 | . . . . . . 1 Combat Hostiles 1 | . . . . . . 1 Robots Corrupted 1 | . . . . 1 . . Combat Hostiles . | . . . . . . . Parts Fried 5 | . . . . 5 . . Impact Corruptions 3 | . . . . 3 . . Robots Melted . | . . . . . . . Combat Hostiles . | . . . . . . . Parts Melted 5 | 4 . . . . . 1 Heat Transferred 1901 | 1251 25 50 225 . . 350 Parts Sabotaged . | . . . . . . . Parts Stolen . | . . . . . . . Parts Stripped . | . . . . . . . Power Chain Reactions . | . . . . . . . Alert | -11 -10 -10 -10 -9 -9 -6 ------- Run | Yrd Mat Min Sub Rec Scr Fac Maximum Alert Level 1 | . . . . . . 1 Low Security (%) 99 | 100 100 100 . 100 . 98 Level 1 . | . . . . . . 1 Level 2 . | . . . . . . . Level 3 . | . . . . . . . Level 4 . | . . . . . . . Level 5 . | . . . . . . . High Security . | . . . . . . . Max Security . | . . . . . . . Peak Influence 361 | 10 5 186 . 134 . 361 Initial 80 | . . . . 80 . . Average 47 | 1 . 102 . 17 . 76 Influence Increases 2424 | 45 5 414 278 391 . 1291 Destroy 0b10 Robot/C 1260 | . . 280 180 100 . 700 Destroy 0b10 Robot/NC 90 | 45 . . . 25 . 20 Destroy Leader 206 | . . 50 10 . . 146 Allied During Kill 176 | . . . 28 53 . 95 Successful Hack 54 | . 5 . . 3 . 46 Select Force Hacks 210 | . . . . 210 . . Disable Machine 165 | . . 30 . . . 135 Destroy Structure 143 | . . 39 . . . 104 Partial Spotted 15 | . . . . . . 15 Lose Combat Pursuer 105 | . . 15 60 . . 30 Influence Decreases 2085 | 45 5 400 124 559 . 952 Entered New Map 96 | . . . 8 88 . . Time Decay 1569 | 45 5 380 96 431 . 612 Lost Part 180 | . . 20 . . . 160 Lost Ally 240 | . . . 20 40 . 180 Squads Dispatched 12 | . 2 . . . . 10 Investigation 3 | . . . . . . 3 Extermination 5 | . . . . . . 5 Reinforcement 4 | . 2 . . . . 2 Assault . | . . . . . . . Garrison . | . . . . . . . Intercept . | . . . . . . . Searches Triggered . | . . . . . . . Construction Impeded . | . . . . . . . Haulers Reinforced 1 | . . . . . . 1 Active Scanning Responses . | . . . . . . . Cargo Convoy Interrupts 1 | . . . . . . 1 Stealth | -11 -10 -10 -10 -9 -9 -6 --------- Run | Yrd Mat Min Sub Rec Scr Fac Distress Signals 5 | . . . . . . 5 Communications Jammed 51 | . . . . . . 51 Distress Signals 51 | . . . . . . 51 Times Spotted 104 | . 10 15 23 3 . 53 Peak Tracking Total 9 | . 3 3 6 2 . 9 Tactical Retreats 4 | . . 1 1 . . 2 Traps | -11 -10 -10 -10 -9 -9 -6 ------- Run | Yrd Mat Min Sub Rec Scr Fac Traps Triggered 2 | . 1 . . . . 1 Indirectly . | . . . . . . . Trap Hack Attempts . | . . . . . . . Triggered . | . . . . . . . Disarmed . | . . . . . . . Reprogrammed . | . . . . . . . Reused . | . . . . . . . Traps Extracted . | . . . . . . . Installed . | . . . . . . . Triggered . | . . . . . . . Machines | -11 -10 -10 -10 -9 -9 -6 ---------- Run | Yrd Mat Min Sub Rec Scr Fac Machines Disabled 14 | . . 2 3 . . 9 Max in Single Turn 6 | . . 2 1 . . 6 Garrison Access 1 | . . . . . . 1 Machines Repaired . | . . . . . . . Machines Dismantled . | . . . . . . . Machines Sabotaged . | . . . . . . . Overloaded Fab Kills . | . . . . . . . Hacking | -11 -10 -10 -10 -9 -9 -6 --------- Run | Yrd Mat Min Sub Rec Scr Fac Machines Accessed 34 | . 2 1 3 13 3 12 Terminals 14 | . 2 1 . 6 . 5 Fabricators 3 | . . . . . . 3 Repair Stations 1 | . . . . . . 1 Recycling Units 8 | . . . . 7 . 1 Scanalyzers 1 | . . . . . . 1 Garrison Access 1 | . . . . . . 1 Total Hacks 81 | . 10 2 12 23 10 24 Successful 52 | . 3 . 12 16 10 11 Failed 29 | . 7 2 . 7 . 13 Catastrophic 7 | . 1 . . 2 . 4 Database Lockouts . | . . . . . . . Manual 38 | . 8 1 . 18 . 11 Terminals 38 | . 10 2 . 16 . 10 Fabricators 8 | . . . . . . 8 Repair Stations 1 | . . . . . . 1 Recycling Units 9 | . . . . 7 . 2 Scanalyzers 1 | . . . . . . 1 Garrison Access 2 | . . . . . . 2 Terminal Hacks 26 | . 2 . 12 1 10 1 Record 11 | . . . 9 . 2 . Robot Analysis 9 | . 2 . . . 7 . Open Door 2 | . . . 1 . 1 . Branch Access Points 1 | . . . . . . 1 Zone Layout 1 | . . . . 1 . . Proto ID Catalog 1 | . . . 1 . . . Release Object 1 | . . . 1 . . . Fabricator Hacks 4 | . . . . . . 4 Network Status 1 | . . . . . . 1 Load Schematic 2 | . . . . . . 2 Build 1 | . . . . . . 1 Repair Station Hacks . | . . . . . . . Recycling Unit Hacks . | . . . . . . . Scanalyzer 1 | . . . . . . 1 Insert Component 1 | . . . . . . 1 Garrison Access Hacks 1 | . . . . . . 1 Seal Access 1 | . . . . . . 1 Unauthorized Hacks 20 | . 1 . . 15 . 4 Terminals 11 | . 1 . . 8 . 2 Assimilate 1 | . . . . . . 1 Botnet 5 | . 1 . . 3 . 1 Skim 5 | . . . . 5 . . Fabricators 1 | . . . . . . 1 Liberate 1 | . . . . . . 1 Repair Stations . | . . . . . . . Recycling Units 8 | . . . . 7 . 1 Tunnel 7 | . . . . 7 . . Fedlink 1 | . . . . . . 1 Scanalyzers . | . . . . . . . Garrison Access . | . . . . . . . Data Cores Recovered . | . . . . . . . Used . | . . . . . . . Hacking Detections 20 | . 2 1 . 6 . 11 Full Trace Events 3 | . . 1 . 1 . 1 Feedback Events . | . . . . . . . Feedback Blocked . | . . . . . . . Robot Schematics Acquired . | . . . . . . . Robots Built . | . . . . . . . Authchips . | . . . . . . . Time . | . . . . . . . Total Robot Build Rating . | . . . . . . . Part Schematics Acquired 24 | . . . . . 18 6 Parts Built 1 | . . . . . . 1 Authchips 1 | . . . . . . 1 Time 84 | . . . . . . 84 Total Part Build Rating 6 | . . . . . . 6 Part Studies Acquired . | . . . . . . . Parts Repaired . | . . . . . . . Time . | . . . . . . . Parts Recycled . | . . . . . . . Recycled Matter . | . . . . . . . Retrieved Matter . | . . . . . . . Retrieved Components . | . . . . . . . Parts Scanalyzed . | . . . . . . . Part Schematics Acquired . | . . . . . . . Parts Damaged . | . . . . . . . Bothacking | -11 -10 -10 -10 -9 -9 -6 ------------ Run | Yrd Mat Min Sub Rec Scr Fac Used RIF Installer . | . . . . . . . Robots Hacked . | . . . . . . . Non-combat . | . . . . . . . Combat . | . . . . . . . Robot Hacks Applied . | . . . . . . . Relay Couplers Released 4 | . . . . . . 4 Programmers 4 | . . . . . . 4 Fabnet Peak Effective % . | . . . . . . . Robots Rewired 10 | . . . . 9 . 1 Allies Hacked . | . . . . . . . Hacks Repelled . | . . . . . . . Allies | -11 -10 -10 -10 -9 -9 -6 -------- Run | Yrd Mat Min Sub Rec Scr Fac Total Allies 24 | . . . 11 9 . 4 Largest Group 15 | . . . 8 15 15 13 Highest-Rated Group 263 | . . . 152 263 263 225 Highest-Rated Ally 32 | . . . 19 30 30 32 Total Orders 1 | . . . . . 1 . STAY 1 | . . . . . 1 . Ally Attacks 153 | . . . 51 24 . 78 Total Damage 2651 | . . . 685 520 . 1446 Kills 24 | . . . 7 4 . 13 Allies Corrupted 2 | . . . . . . 2 Allies Melted . | . . . . . . . Intel | -11 -10 -10 -10 -9 -9 -6 ------- Run | Yrd Mat Min Sub Rec Scr Fac Active Infowar (turns) 6671 | 32 347 888 3081 . . 2323 Sensors 633 | . . . . . . 633 Seismic 5870 | 32 347 888 3081 . . 1522 Cloaking 174 | . . . . . . 174 Jamming 117 | . . . . . . 117 Robot Analysis Total 9 | . 2 . . . 7 . Derelict Logs Recovered 6 | . . 2 1 . 3 . Drone Launches . | . . . . . . . Drone Recoveries . | . . . . . . . Exploration | -11 -10 -10 -10 -9 -9 -6 ------------- Run | Yrd Mat Min Sub Rec Scr Fac Turns Passed 21399 | 226 347 888 7322 2925 7366 2325 Spaces Moved 7969 | 115 254 649 2015 822 2726 1388 Core 5 | 5 . . . . . . Treads . | . . . . . . . Legs 7951 | 110 254 649 2015 822 2726 1375 Wheels . | . . . . . . . Hover 13 | . . . . . . 13 Flight . | . . . . . . . Fastest Speed 50 | 50 120 120 120 330 190 80 Average Speed 244 | 116 120 120 324 330 267 123 Slowest Speed 610 | 120 120 120 610 330 330 330 Overloaded Moves . | . . . . . . . Propulsion Burnouts . | . . . . . . . Robots Hopped . | . . . . . . . Potential Cave-ins . | . . . . . . . Cave-ins Triggered 1 | . . . . . . 1 Exploration Rate (%) 65 | 6 44 98 94 98 87 31 Regions Visited 6 Branch Regions 4 Pre-discovered Areas 14 | . . 2 2 10 . . Known Exits Taken . | . . . . . . . Unknown Exits Taken 6 | 1 1 1 1 1 1 . Scrap Searched 15 | . . 2 8 . 5 . Spaces Dug 60 | . . 15 4 . . 41 Terrain Destroyed 183 | . . 42 22 . . 119 Melee 27 | . . . . . . 27 Projectile 7 | . . 2 . . . 5 AOE 149 | . . 40 22 . . 87 Terrain Rammed . | . . . . . . . Walls Destroyed . | . . . . . . . Machines Disabled . | . . . . . . . Actions | -11 -10 -10 -10 -9 -9 -6 --------- Run | Yrd Mat Min Sub Rec Scr Fac Total 9484 | 155 279 699 2733 1024 2793 1801 Wait 913 | . . 6 638 34 41 194 Move 7963 | 114 253 648 2014 821 2725 1388 Hop . | . . . . . . . Pick Up 59 | 5 6 3 8 7 9 21 Fast Attach 22 | 7 2 . 3 1 2 7 Attach 38 | . . 2 3 . 1 32 Detach 19 | . . . 2 . 3 14 Swap 29 | 1 . 9 7 1 3 8 Drop 40 | . 5 2 9 3 9 12 Fire 135 | 28 11 29 49 3 . 15 Melee 113 | . . . . 5 . 108 Ram . | . . . . . . . Kick 3 | . 2 . . 1 . . Crush . | . . . . . . . Escape Stasis . | . . . . . . . Rewire 149 | . . . . 148 . 1 Trap . | . . . . . . . Miscellaneous 1 | . . . . . . 1 Route ------- -11/Scrapyard -10/Materials -10/Mines (discovered 4 exits: [*Mat x2] / [*Exi] / *Sub) -10/Subcaves (discovered 3 exits: [*Mat x2] / *Rec) -9/Recycling (discovered 2 exits: [*Fac] / *Scr) -9/Scraptown (discovered 2 exits: *Fac x2) -6/Factory (discovered 2 exits: Low x2) History --------- Turn | Location | Event 3 | -11/Scrapyard | Discovered new exit (range 16) 227 | -11/Scrapyard | Entered Materials 306 | -10/Materials | Build established: Mutant 371 | -10/Materials | Discovered new exit (range 6) 574 | -10/Materials | Entered Mines 604 | -10/Mines | Deemed a non-threat by the Exiles lab entrance 605 | -10/Mines | Discovered new exit (range 5) 816 | -10/Mines | Discovered new exit (range 11) 862 | -10/Mines | Discovered new exit (range 13) 912 | -10/Mines | Discovered new exit (range 5) 1017 | -10/Mines | Learned location of Zion (-6) 1462 | -10/Mines | Entered Subcaves 1463 | -10/Subcaves | Approached by a straggling Scientist 1713 | -10/Subcaves | Discovered new exit (range 10) 1903 | -10/Subcaves | Found SUBCON Basin 2487 | -10/Subcaves | A swath of the cavern ceiling suddenly collapsed 3221 | -10/Subcaves | Shifting Twisted Machinery released Spk. Treads 3264 | -10/Subcaves | Shifting Twisted Machinery released Battle Rifle 4367 | -10/Subcaves | A Subdweller sparked back to life 4367 | -10/Subcaves | A Subdweller sparked back to life 4367 | -10/Subcaves | A Subdweller sparked back to life 4377 | -10/Subcaves | Ambushed by Subdweller buried in earth 4439 | -10/Subcaves | Found Prototype Protection 4523 | -10/Subcaves | Visited triangular shrine 4543 | -10/Subcaves | Found Prototype Device 4543 | -10/Subcaves | Identified V3-11A's Pendant 4548 | -10/Subcaves | Befriended Subdweller 4693 | -10/Subcaves | Discovered new exit (range 12) 4703 | -10/Subcaves | Befriended Subdweller 4703 | -10/Subcaves | Befriended Subdweller 4898 | -10/Subcaves | Visited 4L-MR0's lab 4936 | -10/Subcaves | Found Prototype Leg 4960 | -10/Subcaves | Identified Cargo Legs 4960 | -10/Subcaves | Identified Gun Armor 5250 | -10/Subcaves | Met a Zionite searching for "candidates" 5613 | -10/Subcaves | Befriended Subdweller 5619 | -10/Subcaves | Core integrity fell below 50% 5623 | -10/Subcaves | Befriended Subdweller 5623 | -10/Subcaves | Befriended Subdweller 5638 | -10/Subcaves | Befriended Subdweller 5948 | -10/Subcaves | Discovered new exit (range 14) 6058 | -10/Subcaves | Befriended Subdweller 6276 | -10/Subcaves | A swath of the cavern ceiling suddenly collapsed 6893 | -10/Subcaves | Befriended Subdweller 6898 | -10/Subcaves | Befriended Subdweller 8468 | -10/Subcaves | Befriended Subdweller 8784 | -10/Subcaves | Entered Recycling 8784 | -9/Recycling | Accompanied by 8 allies 9428 | -9/Recycling | Discovered new exit (range 15) 9869 | -9/Recycling | Build established: Commander-Mutant 10254 | -9/Recycling | Learned location of 1 exit from Storage 10341 | -9/Recycling | Scanned before Scraplab entrance 10387 | -9/Recycling | Entered Scraplab 10390 | -9/Recycling | Learned 2 Materials zone layouts 10492 | -9/Recycling | Learned 8 Materials zone layouts 10529 | -9/Recycling | Learned Materials stockpile data 10592 | -9/Recycling | Learned location of Storage (-9) 10697 | -9/Recycling | Learned Storage emergency access door positions 11668 | -9/Recycling | Discovered new exit (range 2) 11709 | -9/Recycling | Entered Scraptown 11709 | -9/Scraptown | Accompanied by 15 allies 11950 | -9/Scraptown | Delivered V3-11A's Pendant to T0-NE2 in exchange for information 12003 | -9/Scraptown | Heard Great Nut preacher, LISTEN AND RECITE! 12241 | -9/Scraptown | Discovered new exit (range 11) 12404 | -9/Scraptown | Scanned Subdweller tech in exchange for log data 12406 | -9/Scraptown | Learned Factory interactive machine intel 12412 | -9/Scraptown | Learned Research stockpile data 12594 | -9/Scraptown | Visited Symbiants 12647 | -9/Scraptown | Visited Assassins FH 13056 | -9/Scraptown | Visited TADAMA 13086 | -9/Scraptown | Visited Comm Corps 13201 | -9/Scraptown | Visited SPCMW 13244 | -9/Scraptown | Visited Awakened 13284 | -9/Scraptown | Visited Cyclists 13340 | -9/Scraptown | Visited UFD Registry 13340 | -9/Scraptown | Registered with UFD as "Shadowstep" 13406 | -9/Scraptown | Entered Cyclist Reading Room 13623 | -9/Scraptown | Visited Chapter 10 13676 | -9/Scraptown | Visited DA-N13 Charitable Foundation 13706 | -9/Scraptown | Found DCF Scrap (31 items) 13775 | -9/Scraptown | Visited Infowarlord's Domain 13838 | -9/Scraptown | Visited Analyses Database 13907 | -9/Scraptown | Visited Derelict Rescue Squad 13983 | -9/Scraptown | Visited Curators Association 14116 | -9/Scraptown | Visited Sword Containment 14162 | -9/Scraptown | Visited LU-1G1's Boring Crew 14252 | -9/Scraptown | Tech Extrapolator generated special schematic: Deep Structural Scanner 14551 | -9/Scraptown | Tech Extrapolator generated special schematic: Vmp. Brace Plating 14619 | -9/Scraptown | Tech Extrapolator generated special schematic: Vmp. Broadsword 14843 | -9/Scraptown | Tech Extrapolator generated special schematic: Machine Rigger 14903 | -9/Scraptown | Delivered Scrap Shield to a Scientist 17387 | -9/Scraptown | Found Exp. Sensor Array 17530 | -9/Scraptown | Found Prototype Slashing Weapon 17530 | -9/Scraptown | Identified Companion Sword 18110 | -9/Scraptown | Tech Extrapolator generated special schematic: Vmp. Humpback 18459 | -9/Scraptown | Found DRS Beacon 18703 | -9/Scraptown | Discovered new exit (range 5) 18956 | -9/Scraptown | Met Optimus 18956 | -9/Scraptown | Accepted into 0bPrime 19075 | -9/Scraptown | Entered Factory 19075 | -6/Factory | Accompanied by 13 allies 19075 | -6/Factory | Evolved 8 slots: Power x1, Propulsion x2, Utility x4, Weapon x1 19076 | -6/Factory | Loaded intel: 54 interactive machine locations 19076 | -6/Factory | Attached Cargo Legs, gained temporary slots: Utility x2 19135 | -6/Factory | Lost 3 allies 19205 | -6/Factory | Fabricated Vmp. Broadsword (x1) 19398 | -6/Factory | Loaded intel: 8 recycling unit locations 19447 | -6/Factory | Build established: Commander-Gladiator 19486 | -6/Factory | Lost 3 allies 19754 | -6/Factory | Build established: Derelict-Gladiator 20539 | -6/Factory | Identified exit to Lower Caves 20608 | -6/Factory | System corruption reached 10% 20761 | -6/Factory | Crushed by falling debris 20838 | -6/Factory | Build established: Gladiator 20973 | -6/Factory | Lost 3 parts (1n1u1w) 21141 | -6/Factory | Core integrity fell below 50% 21345 | -6/Factory | Cargo convoy interrupted 21387 | -6/Factory | Core integrity fell below 20% 21400 | -6/Factory | Destroyed by H-66 Slayer with Heavy Assault Rifle Last Messages --------------- 21389_ Slug penetrates Wall. 21389_ U-05 Engineer builds a Wall. 21390_ I-36 Angel distress signal jammed. 21390_ Acquired Exp. Sensor Array. 21390_ U-05 Engineer lays Concrete. 21390_ K-01 Serf collects debris. 21391_ I-36 Angel distress signal jammed. 21391_ U-05 Engineer lays Concrete. 21392_ I-36 Angel distress signal jammed. 21392_ U-05 Engineer lays Concrete. 21393_ I-36 Angel distress signal jammed. 21393_ U-05 Engineer builds a Wall. 21393_ U-05 Engineer lays Concrete. 21395_ I-36 Angel distress signal jammed. 21395_ K-01 Serf collects debris. 21396_ I-36 Angel distress signal jammed. 21397_ Flexi-carbon Leg destroyed. 21397_ U-05 Engineer builds a Wall. 21398_ I-36 Angel distress signal jammed. 21400_ Penetrated by Slug. Map ----- +----------------------------------------------------+ | ?????????????????????????????# """ + | | ?????????????????????????????# """ ########## | | ???????????????###########???# """ #????????? | | ???????????????# ???# """ #????????? | | ???????????????# ?##! #????????? | | ???????????????# ?# """ #????????? | | ???????????????# # """ #????????? | | ???????????????# # """ #????????? | | ???????????????# + """ ######???? | | ???????????????# # #???? | | ???????????????# # +???" | | ???????????????# ?# #???F | | ???????????????# ?### ##########?????? | | ???????????????# ????# #??"""?????????" | | ???????????????# ????# #??"Y"?????????? | | ???????????????##########?????# #??"?"???#+##### | | ??????????????????????????????# #????????# | | ??????????????????????????????# #????????# ! | | #????????????????????????###### #????????# | | #???????????############## # #####+#### | | #???????????#! #" !# ## # " | | #???????????# #" # ## # " | | ##########??# #" # "" # | | # #??# #T ! + T + | | # """ #### #" # # [ " | | # """ ## ; @" ! ###### # " | | # """ ## ; #????# # | | # # !#????### ### | | # """ # / ;;###??????# #?####### | | # """ ## !!!| #????????# %######## | | /" """ # [!xp| ##????????# # # | | # # !%!p| #?????????# #""" !# | | #####+###"######## ;#?????????# #""" # | | ! %[% uhk ???????# #"S # | | i #??????# #""" # | | """ """ #??????# # "" % # | | """ """ #??????# # + | | """ """ #??????# # ! !!!# | | ################ ???????# + !!!# | | # ????????# # !!!# | | """ """ """??? ? ?????????# # # | | """ """ "????? ???? ###+#### ### ##### | | """ """ ""???? ?? ###???? | | # ??? ##????? | | """ """ ""???? ??? #???### | | """ """ ?????# """ ??????? """ """ """ #???# | | """ """ """? #????????? """ """ """ """ #???# | | #??????""? """ """ """ """ #???# | | #??? ##### | | ###########+#### """ """ """ """ """ """ | +----------------------------------------------------+ Best States ------------- Heat Dissipation 37 Energy Generation 29 Energy Capacity 500 Matter Stores 300 Matter Capacity 300 Sight Range 16 Robot Scan Range 20 Terrain Scan Density 10 Jamming Range 12 Cloak Strength 2 Armor Coverage 375 Evasion (%) 65 Melee Accuracy 16 Force Boost 20 Authchip Count 4 Item Schematics ----------------- Mak. Leg | -9/Scraptown | Extrapolated Spk. Treads | -9/Scraptown | Extrapolated Deep Structural Scanner | -9/Scraptown | Extrapolated Mak. Coolant Network | -9/Scraptown | Extrapolated Mak. Light Armor Plating | -9/Scraptown | Extrapolated Vmp. Brace Plating | -9/Scraptown | Extrapolated Vmp. Broadsword | -9/Scraptown | Extrapolated Machine Rigger | -9/Scraptown | Extrapolated 0b10 Decoder Chip [Scout] | -9/Scraptown | Extrapolated 0b10 Decoder Chip [Generic] | -9/Scraptown | Extrapolated 0b10 Decoder Chip [Skirmisher] | -9/Scraptown | Extrapolated Mak. Targeting Computer | -9/Scraptown | Extrapolated Tactical Coordination Suite | -9/Scraptown | Extrapolated Lgt. Humpback | -9/Scraptown | Extrapolated Vmp. Humpback | -9/Scraptown | Extrapolated Mak. Terrain Scanner | -9/Scraptown | Extrapolated Mak. Salvage Targeting Computer | -9/Scraptown | Extrapolated Mak. Kinetic Plating | -9/Scraptown | Extrapolated Beamcaster | -6/Factory | Extrapolated Spk. Medium Treads | -6/Factory | Extrapolated 0b10 Decoder Chip [Looter] | -6/Factory | Extrapolated Ripper | -6/Factory | Extrapolated Mak. System Shield | -6/Factory | Extrapolated Humpback | -6/Factory | Extrapolated Robot Schematics ------------------ None Fabricated ------------ Vmp. Broadsword | x1 | -6/Factory | Authchip Repaired ---------- Nothing Studied --------- None Alien Tech Used ----------------- None Achievements -------------- None Challenges ------------ None Game ------ Seed SpliceLauncherBay Manual? 0 Play Time 01:13:16 Cumulative 200.6 hours Start 2025.11.27 @ 19:35:37 End 2025.11.28 @ 15:33:21 Sessions 5 Manual Loads 0 Difficulty Rogue Special Mode None Game No. 187 Rogue 187 Adventurer 0 Explorer 0 Win Type - Total 8 Types 6/0/1/0/0/0/0/0/0/1 Lore% 83 Gallery% 72 Achievement% 56 Wizard Run 0 Options --------- Layout 1 ASCII 0 Keyboard 1 Movement Arrows Keybinds 0 Fullscreen 1 Font 24/Smallcaps Map View 50x40 Zoom Use 0% Tactical HUD 1 Map Filters NONE Filters NONE Steam 1 RUN: af24813f-700d-484c-8f94-ca682523a9e3